Cogmind - Beta 14 @@@ ROGUE MODE // 2024.10.11 @ 15:11:00 Player: Gabe+Kate4EVR Result: Destroyed by G-47 Trooper with Particle Gun Performance ------------- Evolutions (0) 0 Regions Visited (4) 800 Robots Destroyed (33) 165 Value Destroyed (742) 742 Prototype IDs (23) 460 Alien Tech Used (0) 0 Bonus (300) 300 TOTAL SCORE: 2467 Bonus ------- Aligned with FarCom 300 Cogmind --------- Core Integrity 0/250 Matter 59/300 Energy 100/100 System Corruption 5% Temperature Cool (9) Movement Flying (37) Location -9/Mines Parts ------- > --- POWER (1) -------- (None) > --- PROPULSION (2) --- Flight Unit Flight Unit > --- UTILITY (2) ------ 0b10 Alert Chip > --- WEAPON (2) ------- (None) > --- INVENTORY (5) ---- Ion Engine Field Recycling Unit (0) Rocket Launcher Hammer Peak State ------------ > --- POWER ------------ Light Nuclear Core > --- PROPULSION ------- Flight Unit Flight Unit > --- UTILITY ---------- Medium Storage Unit 0b10 Alert Chip > --- WEAPON ----------- Improved Light Cannon Improved Light Cannon > --- INVENTORY -------- Ion Engine Flight Unit Flight Unit Improved Heat Sink Propulsion Shielding Field Recycling Unit Field Recycling Unit Rocket Launcher Rocket Launcher Hammer [Rating: 17] Favorites ----------- Power Ion Engine Engine Ion Engine Power Core Light Nuclear Core Propulsion Aluminum Leg Leg Aluminum Leg Hover Unit Hover Unit Flight Unit Flight Unit Utility Propulsion Shielding Device Improved Heat Sink Storage Medium Storage Unit Processor 0b10 Alert Chip Protection Propulsion Shielding Weapon Improved Light Cannon Energy Gun EM Pulse Gun Ballistic Gun Light Assault Rifle Ballistic Cannon Improved Light Cannon Launcher Rocket Launcher Build | -11 -10 -10 -10 -9 ------- Run | Yrd Mat Min Exi Min Slots Evolved . | . . . . . Power . | . . . . . Propulsion . | . . . . . Utility . | . . . . . Weapon . | . . . . . Parts Attached 38 | 6 19 10 3 . Power 6 | 1 2 3 . . Engine 5 | 1 2 2 . . Core 1 | . . 1 . . Reactor . | . . . . . Propulsion 14 | 2 5 5 2 . Treads . | . . . . . Leg 7 | 2 3 2 . . Wheel . | . . . . . Hover 2 | . 2 . . . Flight 5 | . . 3 2 . Utility 8 | 1 6 . 1 . Device 1 | . 1 . . . Storage 2 | 1 1 . . . Processor 1 | . . . 1 . Hackware . | . . . . . Protection 4 | . 4 . . . Artifact . | . . . . . Weapon 10 | 2 6 2 . . Energy Gun 1 | 1 . . . . Energy Cannon . | . . . . . Ballistic Gun 1 | 1 . . . . Ballistic Cannon 6 | . 5 1 . . Launcher 2 | . 1 1 . . Special Weapon . | . . . . . Impact Weapon . | . . . . . Slashing Weapon . | . . . . . Piercing Weapon . | . . . . . Special Melee Weapon . | . . . . . Unidentified Prototypes . | . . . . . Corrupted Parts 1 | . 1 . . . System Corruption 3 | . 3 . . . Parts Lost 6 | . 2 2 1 1 Power 3 | . 1 1 . 1 Propulsion 3 | . 1 1 1 . Utility . | . . . . . Weapon . | . . . . . Highest Loss Streak 2 | . 1 2 1 2 To Critical Strikes . | . . . . . Average Slot Usage (%) 98 | . 98 98 96 57 Engine 10 | . 14 11 . . Core 3 | . . 2 14 14 Leg 13 | . 24 6 . . Hover 1 | . 3 . . . Flight 12 | . . 20 27 28 Storage 13 | . 14 14 13 . Protection 12 | . 12 14 9 . Energy Gun 1 | . 4 . . . Ballistic Gun 1 | . 4 . . . Ballistic Cannon 23 | . 18 27 26 . Peak Build Rating 17 | 6 12 12 17 11 Average Rating 10 | 4 8 10 13 10 On Entrance 7 | . 6 10 12 11 Naked Turns . | . . . . . Heaviest Build 24 | 13 24 24 24 5 Greatest Support 20 | 20 20 20 8 8 Greatest Overweight (x) 5 | 2 3 5 2 . Average Overweight (x) 1 | . . 1 1 . Largest Inventory Capacity 10 | 8 10 10 10 5 Average Capacity 9 | 7 8 10 9 5 Most Carried 10 | 1 10 10 10 4 Average Carried 8 | . 7 9 8 4 Final Capacity 10 | 8 10 10 5 5 Final Carried 10 | 1 10 9 4 4 Class Distribution -------------------- 100% | Mutant Dominant Class ---------------- Mutant | -10/Materials Mutant | -10/Mines Mutant | -10/Exiles Mutant | -9/Mines Resources | -11 -10 -10 -10 -9 ----------- Run | Yrd Mat Min Exi Min Matter Collected 916 | 202 352 362 . . Remotely . | . . . . . Salvage Created 759 | . 483 276 . . Parts 52 | . 35 17 . . Haulers Intercepted 2 | . 2 . . . Recyclers Shooed 2 | . 1 1 . . Parts Field Recycled . | . . . . . Retrieved Matter . | . . . . . Parts Self-Destructed . | . . . . . Prevented . | . . . . . Kills | -11 -10 -10 -10 -9 ------- Run | Yrd Mat Min Exi Min Combat Hostiles Destroyed 22 | . 12 10 . . Guns 3 | . 3 . . . Cannons 13 | . 4 9 . . AOE 6 | . 5 1 . . Classes Destroyed 7 | . 7 . . . Worker 2 | . 1 1 . . Hauler 2 | . 2 . . . Recycler 3 | . 1 2 . . Operator 1 | . 1 . . . Watcher 3 | . 3 . . . Swarmer 9 | . 3 6 . . Grunt 13 | . 9 4 . . Best Kill Streak 8 | . 8 3 . . Combat Bots Only 5 | . 5 3 . . Max Kills in Single Turn 2 | . 2 2 . . Gunslinging . | . . . . . Exploded 2 | . 2 1 . . Melee . | . . . . . Uniques/NPCs Destroyed . | . . . . . Combat | -11 -10 -10 -10 -9 -------- Run | Yrd Mat Min Exi Min Hostile Shots Fired 113 | . 41 65 4 3 Missed 32 | . 11 20 . 1 Damage Taken 1145 | . 356 575 185 29 Core 265 | . 89 33 125 18 Absorbed by Shields . | . . . . . Redirected to Shielding 58 | . 23 35 . . Regen/Repaired (Parts) 23 | . 23 . . . Core Remaining (%) 100 | 100 . . . . Volleys Fired 63 | . 32 31 . . Largest 2 | . 2 2 . . Hottest 78 | . 78 78 . . Shots Fired 130 | . 66 63 1 . Gun 24 | . 24 . . . Cannon 97 | . 36 60 1 . Launcher 9 | . 6 3 . . Special . | . . . . . Kinetic 109 | . 48 60 1 . Thermal . | . . . . . Explosive 9 | . 6 3 . . Electromagnetic 12 | . 12 . . . Robot Hit Streak 10 | . 10 5 . . Robot Miss Streak 7 | . 4 7 1 . Penetration Max . | . . . . . Secondary Targets . | . . . . . Shots Hit Robots 63 | . 36 27 . . Core Hits 46 | . 30 16 . . Critical Kills . | . . . . . Critical Parts Destroyed . | . . . . . Critical Strikes 3 | . 1 2 . . Blast 3 | . 1 2 . . Melee Attacks . | . . . . . Impact . | . . . . . Slashing . | . . . . . Piercing . | . . . . . Sneak Attacks . | . . . . . Combat Hostiles . | . . . . . Follow-up Attacks . | . . . . . Damage Inflicted 1773 | . 1130 643 . . Guns 189 | . 189 . . . Cannons 994 | . 368 626 . . Explosions 590 | . 573 17 . . Melee . | . . . . . Ramming . | . . . . . Kinetic 1065 | . 439 626 . . Thermal . | . . . . . Explosive 590 | . 573 17 . . Electromagnetic 118 | . 118 . . . Impact . | . . . . . Slashing . | . . . . . Piercing . | . . . . . Highest Corruption 5 | . 4 5 5 5 Average Corruption 3 | . 1 4 5 5 Corruption Purged . | . . . . . Corruption Blocked . | . . . . . Effects 53 | . 10 32 10 1 Message Errors 10 | . 1 6 3 . Matter Fused 14 | . 2 9 2 1 Heat Flow Errors 10 | . 3 6 1 . Energy Discharges 7 | . 1 6 . . Data Loss (minor) 6 | . 1 3 2 . Data Loss (major) 1 | . . . 1 . Misfires 4 | . 2 1 1 . Alerts 1 | . . 1 . . Overload Shots . | . . . . . Overflow Damage 9 | . . 9 . . Projectiles 9 | . . 9 . . Explosions . | . . . . . Melee . | . . . . . Knockbacks 11 | . 2 9 . . Impact . | . . . . . Kinetic 11 | . 2 9 . . Secondary . | . . . . . Self-Inflicted Damage 86 | . 7 79 . . Shots 3 | . 1 2 . . Rammed . | . . . . . Targets Rammed . | . . . . . Kicked . | . . . . . Crushed . | . . . . . Highest Temperature 250 | . 144 237 250 . Average Temperature 68 | . 43 83 116 . Received Heat Transfer 255 | . 156 84 . 15 Effects 1 | . . 1 . . Energy Bleed 1 | . . 1 . . Siege Activations . | . . . . . Robots Corrupted . | . . . . . Combat Hostiles . | . . . . . Parts Fried . | . . . . . Impact Corruptions . | . . . . . Robots Melted . | . . . . . Combat Hostiles . | . . . . . Parts Melted . | . . . . . Heat Transferred . | . . . . . Parts Sabotaged . | . . . . . Parts Stolen . | . . . . . Parts Stripped . | . . . . . Power Chain Reactions . | . . . . . Alert | -11 -10 -10 -10 -9 ------- Run | Yrd Mat Min Exi Min Peak Influence 313 | . 313 245 . 12 Initial . | . . . . . Average 80 | . 103 60 . 8 Maximum Alert Level 1 | . 1 1 . . Low Security (%) 88 | 100 83 92 . 100 Level 1 11 | . 16 7 . . Level 2 . | . . . . . Level 3 . | . . . . . Level 4 . | . . . . . Level 5 . | . . . . . High Security . | . . . . . Max Security . | . . . . . Squads Dispatched 2 | . 2 . . . Investigation 2 | . 2 . . . Extermination . | . . . . . Reinforcement . | . . . . . Assault . | . . . . . Garrison . | . . . . . Intercept . | . . . . . Searches Triggered . | . . . . . Construction Impeded . | . . . . . Haulers Reinforced . | . . . . . Active Scanning Responses . | . . . . . Cargo Convoy Interrupts . | . . . . . Stealth | -11 -10 -10 -10 -9 --------- Run | Yrd Mat Min Exi Min Distress Signals 2 | . 2 . . . Communications Jammed . | . . . . . Distress Signals . | . . . . . Times Spotted 44 | . 21 10 8 5 Peak Tracking Total 12 | . 5 3 12 2 Tactical Retreats 2 | . 1 . 1 . Traps | -11 -10 -10 -10 -9 ------- Run | Yrd Mat Min Exi Min Traps Triggered 3 | . 2 1 . . Indirectly . | . . . . . Trap Hack Attempts . | . . . . . Triggered . | . . . . . Disarmed . | . . . . . Reprogrammed . | . . . . . Reused . | . . . . . Traps Extracted . | . . . . . Installed . | . . . . . Triggered . | . . . . . Machines | -11 -10 -10 -10 -9 ---------- Run | Yrd Mat Min Exi Min Machines Disabled 9 | . 2 6 1 . Max in Single Turn 4 | . 1 4 1 . Machines Repaired . | . . . . . Machines Dismantled . | . . . . . Machines Sabotaged . | . . . . . Overloaded Fab Kills . | . . . . . Hacking | -11 -10 -10 -10 -9 --------- Run | Yrd Mat Min Exi Min Machines Accessed 11 | . 8 1 2 . Terminals 7 | . 6 1 . . Fabricators . | . . . . . Repair Stations 1 | . 1 . . . Recycling Units 1 | . 1 . . . Scanalyzers . | . . . . . Garrison Access . | . . . . . Total Hacks 24 | . 13 1 10 . Successful 21 | . 10 1 10 . Failed 3 | . 3 . . . Catastrophic 1 | . 1 . . . Database Lockouts . | . . . . . Manual 12 | . 10 1 1 . Terminals 11 | . 10 1 . . Fabricators . | . . . . . Repair Stations 2 | . 2 . . . Recycling Units 1 | . 1 . . . Scanalyzers . | . . . . . Garrison Access . | . . . . . Terminal Hacks 11 | . 1 . 10 . Record 9 | . . . 9 . Unreport Threat 1 | . 1 . . . Derelict Proto ID Bank 1 | . . . 1 . Fabricator Hacks . | . . . . . Repair Station Hacks 2 | . 2 . . . Scan Component 1 | . 1 . . . Repair 1 | . 1 . . . Recycling Unit Hacks . | . . . . . Scanalyzer . | . . . . . Garrison Access Hacks . | . . . . . Unauthorized Hacks 8 | . 7 1 . . Terminals 7 | . 6 1 . . Botnet 7 | . 6 1 . . Fabricators . | . . . . . Repair Stations . | . . . . . Recycling Units 1 | . 1 . . . Monitor 1 | . 1 . . . Scanalyzers . | . . . . . Garrison Access . | . . . . . Data Cores Recovered . | . . . . . Used . | . . . . . Hacking Detections 2 | . 2 . . . Full Trace Events 1 | . 1 . . . Feedback Events . | . . . . . Feedback Blocked . | . . . . . Robot Schematics Acquired . | . . . . . Robots Built . | . . . . . Authchips . | . . . . . Time . | . . . . . Total Robot Build Rating . | . . . . . Part Schematics Acquired . | . . . . . Parts Built . | . . . . . Authchips . | . . . . . Time . | . . . . . Total Part Build Rating . | . . . . . Parts Repaired 1 | . 1 . . . Time 26 | . 26 . . . Parts Recycled . | . . . . . Recycled Matter . | . . . . . Retrieved Matter . | . . . . . Retrieved Components . | . . . . . Parts Scanalyzed . | . . . . . Part Schematics Acquired . | . . . . . Parts Damaged . | . . . . . Bothacking | -11 -10 -10 -10 -9 ------------ Run | Yrd Mat Min Exi Min Used RIF Installer . | . . . . . Robots Hacked . | . . . . . Non-combat . | . . . . . Combat . | . . . . . Robot Hacks Applied . | . . . . . Relay Couplers Released . | . . . . . Fabnet Peak Effective % . | . . . . . Robots Rewired . | . . . . . Allies Hacked . | . . . . . Hacks Repelled . | . . . . . Allies | -11 -10 -10 -10 -9 -------- Run | Yrd Mat Min Exi Min Total Allies . | . . . . . Largest Group . | . . . . . Highest-Rated Group . | . . . . . Highest-Rated Ally . | . . . . . Total Orders . | . . . . . Ally Attacks . | . . . . . Total Damage . | . . . . . Kills . | . . . . . Allies Corrupted . | . . . . . Allies Melted . | . . . . . Intel | -11 -10 -10 -10 -9 ------- Run | Yrd Mat Min Exi Min Robot Analysis Total . | . . . . . Derelict Logs Recovered 2 | . . 2 . . Drone Launches . | . . . . . Drone Recoveries . | . . . . . Exploration | -11 -10 -10 -10 -9 ------------- Run | Yrd Mat Min Exi Min Turns Passed 3310 | 66 1437 1364 437 6 Spaces Moved 1801 | 44 854 620 269 14 Core 4 | 4 . . . . Treads . | . . . . . Legs 902 | 40 733 129 . . Wheels . | . . . . . Hover 121 | . 121 . . . Flight 774 | . . 491 269 14 Fastest Speed 37 | 50 116 190 37 37 Average Speed 167 | 129 148 202 159 37 Slowest Speed 440 | 190 240 440 197 37 Overloaded Moves . | . . . . . Propulsion Burnouts . | . . . . . Robots Hopped . | . . . . . Cave-ins Triggered . | . . . . . Exploration Rate (%) 54 | 4 96 99 61 14 Regions Visited 4 Branch Regions 3 Pre-discovered Areas 1 | . . 1 . . Known Exits Taken . | . . . . . Unknown Exits Taken 4 | 1 1 1 1 . Scrap Searched 1 | . . 1 . . Spaces Dug . | . . . . . Terrain Destroyed 118 | . 44 74 . . Melee . | . . . . . Projectile 13 | . 4 9 . . AOE 105 | . 40 65 . . Terrain Rammed . | . . . . . Walls Destroyed . | . . . . . Machines Disabled . | . . . . . Actions | -11 -10 -10 -10 -9 --------- Run | Yrd Mat Min Exi Min Total 1980 | 50 970 668 278 14 Wait 29 | . 29 . . . Move 1797 | 43 853 619 268 14 Hop . | . . . . . Pick Up 23 | 1 19 2 1 . Fast Attach 16 | 6 6 3 1 . Attach 4 | . 2 1 1 . Detach 2 | . 1 . 1 . Swap 18 | . 11 6 1 . Drop 28 | . 17 6 5 . Fire 63 | . 32 31 . . Melee . | . . . . . Ram . | . . . . . Kick . | . . . . . Crush . | . . . . . Escape Stasis . | . . . . . Rewire . | . . . . . Trap . | . . . . . Miscellaneous . | . . . . . Route ------- -11/Scrapyard -10/Materials (discovered 4 exits: [*Mat x3] / *Min) -10/Mines (discovered 4 exits: [*Mat x2] / *Exi / [*Sub]) -10/Exiles -9/Mines History --------- Turn | Location | Event 29 | -11/Scrapyard | Discovered new exit (range 15) 67 | -11/Scrapyard | Entered Materials 300 | -10/Materials | Build established: Mutant 386 | -10/Materials | Discovered new exit (range 6) 572 | -10/Materials | Discovered new exit (range 16) 740 | -10/Materials | Discovered new exit (range 15) 974 | -10/Materials | Repaired Propulsion Shielding? 1228 | -10/Materials | Discovered new exit (range 16) 1504 | -10/Materials | Entered Mines 1592 | -10/Mines | Discovered new exit (range 6) 1727 | -10/Mines | Discovered new exit (range 14) 2008 | -10/Mines | Learned location of 1 exit from Materials 2058 | -10/Mines | Deemed a non-threat by the Exiles lab entrance 2058 | -10/Mines | Discovered new exit (range 5) 2138 | -10/Mines | Learned location of Storage (-8) 2740 | -10/Mines | Discovered new exit (range 6) 2868 | -10/Mines | Entered Exiles 2914 | -10/Exiles | Met 8R-AWN 2949 | -10/Exiles | Met EX-HEX 3030 | -10/Exiles | Met EX-BIN 3064 | -10/Exiles | Aligned with FarCom system 3065 | -10/Exiles | Given EX-Vault access code 3121 | -10/Exiles | Opened EX-Vault 3155 | -10/Exiles | Found 0b10 Alert Chip 3247 | -10/Exiles | Warned to stay clear of 0b10 Research branches 3276 | -10/Exiles | Attacked by the Exiles 3284 | -10/Exiles | Core integrity fell below 50% 3290 | -10/Exiles | Core integrity fell below 20% 3301 | -10/Exiles | Discovered new exit (range 12) 3305 | -10/Exiles | Left Exiles lab with 0b10 Alert Chip 3305 | -10/Exiles | Entered Mines 3311 | -9/Mines | Destroyed by G-47 Trooper with Particle Gun Last Messages --------------- sneak in here and steal a few of HEX's prototypes. 03259_ System corrupted: Substantial component data lost. 03276_ System corrupted: FCS attempts to trigger Imp. Light Cannon. 03276_ System corrupted: Imp. Light Cannon misfires. 03276_ EXILES: Hostile robot within lab perimeter. Defensive protocols time, folks! 03276_ BIN's Workstation disabled. 03276_ Dropped Imp. Light Cannon. 03277_ Dropped Med. Storage Unit. 03278_ EX-BIN: "I just want to science!" 03278_ Dropped Propulsion Shielding. 03279_ Acquired Hammer. 03280_ Dropped Flight Unit. 03289_ Flight Unit destroyed. 03293_ System corrupted: Matter fused (-9). 03301_ EXIT=FOUND LOCATION=UNKNOWN GOAL=ESCAPE 03310_ System corrupted: Matter fused (-10). 03310_ Lgt. Nuclear Core destroyed. Map ----- +----------------------------------------------------+ | ??????????????????????????????????????????? | | ??????????????????????????????????????????? | | ??????????????????????????????????????????? | | ??????????????????????????????????????????? | | ??????????????????????????????????????????? | | ??????????????????????????????????????????? | | ??????????????????????????????????????????? | | ??????????????????????????????????????????? | | ??????????????????????????????????????????? | | ??????????????????????????????????????????? | | ??????????????????????????????????????????? | | ??????????????????????????????????????????? | | ??????????????????????????????????????????? | | ??????????????????????????????????????????? | | ??????????????????????????????????????????? | | ??????????????????????????????????????????? | | ??????????????????????????????????????????? | | ??????????????????????????????????????????? | | ???????????????????####???????????????????? | | ???????????????????# ????# #???????????? | | ????????????####???# #???# #???????????? | | ???????????## ##?# ###? ???????????? | | ???????##### ## ?? ????????????? | | ???????# # #???# ????????????? | | ???????# ##??# ????????????? | | ???????????#g g @ #### #????????????? | | ???????????# ## g #????????????? | | ???????????##g ???## ### #????????????? | | ????????????#?????## #?# #????????????? | | ??????????????????# ##?# ##???????????? | | ?????????????????## #### ###?????????? | | ??????????????#### ## ##????????? | | ??????????????# #????????? | | ?????????????# #????????? | | ????????????# ## # ##????????? | | ????????????# ### ## ##?????????? | | ????????????## ##?# ######??????????? | | ?????????????## ###???# #???????????????? | | ??????????????# #??????# #???????????????? | | ??????????????# ???????# #???????????????? | | ??????????????# ??????? #???????????????? | | ??????????????##???????? ???????????????? | | ???????????????????????? $ ???????????????? | | ???????????????????????? #???????????????? | | ????????????????????????##????????????????? | | ??????????????????????????????????????????? | | ??????????????????????????????????????????? | | ??????????????????????????????????????????? | | ??????????????????????????????????????????? | | ??????????????????????????????????????????? | +----------------------------------------------------+ Best States ------------- Heat Dissipation 39 Energy Generation 14 Energy Capacity 250 Matter Stores 300 Matter Capacity 300 Sight Range 16 Terrain Scan Density 10 Armor Coverage 150 Propulsion Shielding 33 Evasion (%) 62 Item Schematics ----------------- None Robot Schematics ------------------ None Fabricated ------------ Nothing Alien Tech Used ----------------- None Achievements -------------- None Challenges ------------ None Game ------ Seed BehemothTripodPlating Manual? 0 Play Time 00:16:23 Cumulative 192.4 hours Start 2024.10.11 @ 14:53:58 End 2024.10.11 @ 15:11:00 Sessions 1 Manual Loads 0 Difficulty Rogue Special Mode None Game No. 377 Rogue 377 Adventurer 0 Explorer 0 Win Type - Total 0 Types 0/0/0/0/0/0/0/0/0 Lore% 36 Gallery% 63 Achievement% 48 Wizard Run 0 Options --------- Layout 0 ASCII 0 Keyboard 1 Movement Numpad Keybinds 0 Fullscreen 2 Font 18/X11 Map View 76x50 Zoom Use 0% Tactical HUD 1 Map Filters NONE Filters NONE Steam 1 RUN: 8652e754-c25f-4bb4-a423-8b5e12e3b5a1